bitfinex-derivatives/quotes_BNBF0:USTF0_20250116
["timestamp","ask_amount","ask_price","bid_price","bid_amount"]
[1737047103130,1.32728492,713.36,712.16,1.04450353]
[1737047103131,1.32728492,713.36,712.48,0.48583214]
[1737047103335,1.32728492,713.36,712.49,0.48583214]
[1737047103541,1.32728492,713.36,712.5,0.48583214]
[1737047103729,1.32728492,713.36,711.93,0.28092649]
[1737047103730,1.32728492,713.36,712.51,0.48583214]
[1737047104032,1.32728492,713.36,712.52,0.48583214]
[1737047104234,1.32728492,713.36,712.53,0.48583214]
[1737047104435,1.32728492,713.36,712.54,0.48583214]
[1737047104637,1.32728492,713.36,712.55,0.48583214]
[1737047104941,1.32728492,713.36,712.56,0.48583214]
[1737047105235,1.32728492,713.36,712.14,1.04450353]
[1737047105236,1.32728492,713.36,712.57,0.48583214]
[1737047105435,1.32728492,713.36,712.58,0.48583214]
[1737047105629,1.32728492,713.36,712.59,0.48583214]
[1737047105835,1.04692157,713.34,712.6,0.48583214]
[1737047106036,1.04692157,713.34,712.18,1.04450353]
[1737047106037,1.04692157,713.34,712.61,0.48583214]
[1737047106336,1.04692157,713.34,712.62,0.48583214]
[1737047106529,1.04692157,713.34,712.18,1.04450353]
[1737047106530,1.04692157,713.34,712.63,0.48583214]
[1737047106732,1.04692157,713.34,712.64,0.48583214]
[1737047106935,1.04692157,713.34,712.65,0.48583214]
[1737047107136,1.04692157,713.34,712.66,0.48583214]
[1737047107338,1.04692157,713.34,712.67,0.48583214]
[1737047107534,1.04692157,713.33,712.68,0.48583214]
[1737047107737,1.04692157,713.33,712.19,1.04450353]
[1737047107938,1.04692157,713.33,712.2,0.74417135]
[1737047108138,1.04692157,713.33,712.21,0.74417135]
[1737047108340,1.04692157,713.33,712.22,0.74417135]
[1737047108640,1.04692157,713.31,712.23,0.74417135]
[1737047108837,1.04692157,713.31,712.24,0.74417135]
[1737047109038,1.04692157,713.31,712.25,0.74417135]
[1737047109238,1.04692157,713.31,712.26,0.74417135]
[1737047109439,1.04692157,713.31,712.27,0.74417135]
[1737047109642,0.28036335,713.36,711.93,0.28092649]
[1737047109643,1.04692157,713.3,712.28,0.74417135]
[1737047109841,1.04692157,713.3,712.29,0.48632758]
[1737047110042,1.04692157,713.3,712.3,0.48632758]
[1737047110245,1.04692157,713.3,712.31,0.48632758]
[1737047110545,1.04692157,713.3,712.32,0.48632758]
[1737047110847,1.04692157,713.31,712.33,0.48027407]
[1737047111038,1.04692157,713.31,712.23,1.04450353]
[1737047111445,1.04692157,713.31,712.24,0.25781777]
[1737047111646,1.04692157,713.31,712.23,1.04450353]
[1737047111847,1.04692157,713.31,712.25,0.25780838]
[1737047112048,1.04692157,713.31,712.26,0.25780741]
[1737047112346,0.28036335,713.36,711.93,0.28092649]
[1737047112347,0.28036335,713.36,712.22,1.04450353]
[1737047112548,1.04692157,713.44,712.23,0.25779086]
[1737047112747,1.04692157,713.44,712.22,1.04450353]
[1737047112944,1.04692157,713.44,712.23,0.53859406]
[1737047113145,1.04692157,713.44,712.24,0.53859012]
[1737047113346,1.85586516,714.73,712.24,0.53859012]
[1737047113347,1.04692157,713.53,712.28,1.04450353]
[1737047114452,1.04692157,713.55,712.25,1.04450353]
[1737047115251,1.04692157,713.55,712.24,0.28080422]
[1737047115252,1.04692157,713.52,712.24,0.28080422]
[1737047115449,1.04692157,713.52,712.26,0.28079633]
[1737047116153,1.04692157,713.53,712.26,0.28079633]
[1737047116954,1.04692157,713.53,712.27,0.25783215]
[1737047117155,2.13746488,714.33,712.27,0.25783215]
[1737047117156,1.04692157,713.41,712.27,0.25783215]
[1737047118458,1.04692157,713.41,712.26,0.28079633]
[1737047118459,1.04692157,713.22,712.28,0.25786418]
[1737047118756,1.04692157,713.22,712.29,0.25786418]
[1737047118952,1.04692157,713.22,712.3,0.25786418]
[1737047119253,1.04692157,713.22,712.31,0.25786418]
[1737047119450,1.04692157,713.22,712.26,0.28079633]
[1737047119655,1.04692157,713.22,712.27,0.25786128]
[1737047120253,1.04692157,713.22,712.26,0.28079633]
[1737047120555,1.04692157,713.18,712.26,0.28079633]
[1737047121351,1.04692157,713.19,712.26,0.28079633]
[1737047122456,1.04692157,713.09,712.26,0.28079633]
[1737047122655,1.04692157,713.09,712.27,0.48715169]
[1737047122852,1.04692157,713.09,712.28,0.48715169]
[1737047123056,1.04692157,713.09,712.29,0.48715169]
[1737047123251,1.04692157,713.09,712.3,0.48715169]
[1737047123453,1.04692157,713.09,712.26,0.28079633]
[1737047123454,1.04692157,713.13,712.31,0.48715169]
[1737047123653,1.04692157,713.13,712.32,0.48715169]
[1737047123857,1.04692157,713.13,712.33,0.48715169]
[1737047124159,1.04692157,713.13,712.34,0.48715169]
[1737047124358,1.04692157,713.13,712.35,0.48715169]
[1737047124653,1.04692157,713.25,712.36,0.48715169]
[1737047124856,1.04692157,713.25,712.37,0.48715169]
[1737047125052,1.04692157,713.25,712.38,0.48715169]
[1737047125359,1.04692157,713.25,712.39,0.48715169]
[1737047125660,1.04692157,713.4,712.4,0.48715169]
[1737047125853,1.04692157,713.4,712.41,0.48715169]
[1737047126056,1.04692157,713.4,712.42,0.48715169]
[1737047126357,2.13746488,714.05,712.26,0.28079633]
[1737047126358,1.04692157,713.39,712.43,0.48715169]
[1737047126554,1.04692157,713.39,712.44,0.48715169]
[1737047126755,1.04692157,713.39,712.26,0.28079633]
[1737047126756,1.04692157,713.39,712.45,0.48715169]
[1737047126957,1.04692157,713.39,712.46,0.48715169]
[1737047127159,1.04692157,713.4,712.47,0.48715169]
[1737047127455,1.04692157,713.4,712.48,0.48715169]
[1737047127656,1.04692157,713.4,712.49,0.48715169]
[1737047127856,1.04692157,713.4,712.26,0.28079633]
[1737047127857,1.04692157,713.4,712.5,0.48715169]
[1737047128055,1.04692157,713.4,712.51,0.48715169]
[1737047128257,1.04692157,713.4,712.52,0.48715169]
[1737047128453,1.04692157,713.4,712.53,0.48715169]
[1737047128659,1.04692157,713.4,712.54,0.48715169]
[1737047128858,1.04692157,713.4,712.55,0.48715169]
[1737047129059,1.04692157,713.4,712.56,0.48715169]
[1737047129260,1.04692157,713.4,712.57,0.48715169]
[1737047129462,1.04692157,713.37,712.58,0.48715169]
[1737047129659,1.04692157,713.37,712.59,0.48715169]
[1737047129859,1.04692157,713.37,712.6,0.48715169]
[1737047130060,1.04692157,713.37,712.61,0.48715169]
[1737047130359,1.04692157,713.37,712.62,0.48715169]
[1737047130555,1.04692157,713.31,712.63,0.48715169]
[1737047130759,1.04692157,713.31,712.64,0.48715169]
[1737047130954,1.04692157,713.31,712.65,0.48715169]
[1737047131159,1.04692157,713.31,712.66,0.48715169]
[1737047131361,1.04692157,713.31,712.67,0.48715169]
[1737047131559,1.04692157,713.31,712.26,0.28079633]
[1737047131560,1.04692157,713.31,712.68,0.48715169]
[1737047131861,1.04692157,713.31,712.69,0.48715169]
[1737047132061,1.04692157,713.31,712.7,0.48715169]
[1737047132260,1.04692157,713.31,712.71,0.48715169]
[1737047132461,1.04692157,713.31,712.72,0.48715169]
[1737047132656,1.04692157,713.31,712.73,0.48715169]
[1737047132855,1.04692157,713.29,712.74,0.48715169]
[1737047133055,1.04692157,713.29,712.26,0.28079633]
[1737047133056,1.04692157,713.29,712.75,0.48768992]
[1737047133261,1.04692157,713.29,712.26,0.28079633]
[1737047133262,1.04692157,713.29,712.76,0.48768992]
[1737047133457,1.04692157,713.29,712.77,0.48768992]
[1737047133759,1.04692157,713.29,712.78,0.48768992]
[1737047133963,1.04692157,713.29,712.79,0.48768992]
[1737047134161,1.04692157,713.29,712.8,0.48768992]
[1737047134362,1.04692157,713.36,712.81,0.48778314]
[1737047134562,1.04692157,713.36,712.26,0.28079633]
[1737047134862,1.04692157,713.36,712.27,0.48773371]
[1737047135061,1.04692157,713.36,712.28,0.48773371]
[1737047135262,1.04692157,713.36,712.29,0.48773371]
[1737047135563,1.04692157,713.36,712.26,0.28079633]
[1737047135564,1.04692157,713.33,712.3,0.48773371]
[1737047135862,1.04692157,713.33,712.31,0.48773371]
[1737047136062,1.04692157,713.33,712.32,0.48773371]
[1737047136262,1.04692157,713.3,712.33,0.48773371]
[1737047136465,1.04692157,713.3,712.34,0.48773371]
[1737047136764,1.04692157,713.3,712.35,0.48773371]
[1737047136964,1.04692157,713.3,712.36,0.48773371]
[1737047137266,1.04692157,713.32,712.37,0.48773371]
[1737047137465,1.04692157,713.32,712.38,0.48773371]
[1737047137766,1.04692157,713.32,712.39,0.48773371]
[1737047137960,1.04692157,713.32,712.4,0.48773371]
[1737047138166,1.04692157,713.32,712.41,0.48773371]
[1737047138466,1.04692157,713.32,712.42,0.48773371]
[1737047138766,1.04692157,713.32,712.43,0.48773371]
[1737047138966,1.04692157,713.32,712.44,0.48773371]
[1737047139166,1.04692157,713.32,712.45,0.48773371]
[1737047139366,1.04692157,713.32,712.46,0.48773371]
[1737047139567,2.13746488,713.98,712.26,0.28079633]
[1737047139568,1.04692157,713.3,712.47,0.48773371]
[1737047139770,1.04692157,713.3,712.48,0.48773371]
[1737047139972,1.04692157,713.3,712.49,0.48773371]
[1737047140168,1.04692157,713.3,712.5,0.48773371]
[1737047140369,1.04692157,713.3,712.51,0.48773371]
[1737047140570,2.13746488,713.97,712.26,0.28079633]
[1737047140571,1.04692157,713.29,712.52,0.48773371]
[1737047140769,1.04692157,713.29,712.53,0.48773371]
[1737047140973,1.04692157,713.29,712.54,0.48773371]
[1737047141170,1.04692157,713.29,712.55,0.48773371]
[1737047141370,1.04692157,713.29,712.56,0.48773371]
[1737047141571,1.04692157,713.29,712.57,0.48773371]
[1737047141771,1.04692157,713.29,712.58,0.48773371]
[1737047141967,2.13746488,713.95,712.26,0.28079633]
[1737047141968,1.04692157,713.14,712.59,0.48773371]
[1737047142170,1.04692157,713.14,712.6,0.48773371]
[1737047142372,1.04692157,713.14,712.61,0.48773371]
[1737047142571,1.04692157,713.14,712.62,0.48773371]
[1737047142773,1.04692157,713.14,712.63,0.48773371]
[1737047143071,1.04692157,713.2,712.64,0.48773371]
[1737047143272,1.04692157,713.2,712.65,0.48773371]
[1737047143471,1.04692157,713.2,712.66,0.48773371]
[1737047143774,1.04692157,713.2,712.67,0.48773371]
[1737047144072,1.04692157,713.22,712.26,0.28079633]
[1737047144273,1.04692157,713.22,712.27,0.48809416]
[1737047144473,1.04692157,713.22,712.28,0.48809416]
[1737047144672,1.04692157,713.22,712.29,0.48809416]
[1737047144873,1.04692157,713.22,712.3,0.48809416]
[1737047145073,2.13746488,713.81,712.26,0.28079633]
[1737047145074,1.04692157,713.16,712.31,0.48809416]
[1737047145267,1.04692157,713.16,712.32,0.48809416]
[1737047145466,1.04692157,713.16,712.33,0.48809416]
[1737047145670,1.04692157,713.16,712.34,0.48809416]
[1737047145870,1.04692157,713.16,712.35,0.48809416]
[1737047146073,1.04692157,713.19,712.36,0.48809416]
[1737047146270,1.04692157,713.19,712.37,0.48799722]
[1737047146474,1.04692157,713.19,712.38,0.48799722]
[1737047146674,1.04692157,713.19,712.39,0.48799722]
[1737047146870,1.04692157,713.19,712.4,0.48799722]
[1737047147084,1.04692157,713.2,712.41,0.48799722]
[1737047147376,1.04692157,713.2,712.42,0.48799722]
[1737047147575,1.04692157,713.2,712.43,0.48799722]
[1737047147775,1.04692157,713.2,712.44,0.48799722]
[1737047147975,1.04692157,713.2,712.45,0.48799722]
[1737047148177,1.04692157,713.21,712.46,0.48799722]
[1737047148371,1.04692157,713.21,712.47,0.48799722]
[1737047148573,1.04692157,713.21,712.48,0.48799722]
[1737047148773,1.04692157,713.21,712.26,0.28079633]
[1737047148774,1.04692157,713.21,712.49,0.48799722]
[1737047149076,1.04692157,713.21,712.5,0.48799722]
[1737047149278,1.04692157,713.21,712.51,0.48799722]
[1737047149478,1.04692157,713.21,712.52,0.48799722]
[1737047149674,1.04692157,713.17,712.53,0.48799722]
[1737047149875,1.04692157,713.17,712.54,0.48799722]
[1737047150174,1.04692157,713.17,712.55,0.48799722]
[1737047150371,1.04692157,713.17,712.56,0.48799722]
[1737047150574,1.04692157,713.17,712.57,0.48799722]
[1737047150878,1.04692157,713.17,712.58,0.48799722]
[1737047151075,1.04692157,713.14,712.59,0.48799722]
[1737047151376,1.04692157,713.14,712.6,0.48799722]
[1737047151576,1.04692157,713.14,712.61,0.48799722]
[1737047151777,1.04692157,713.14,712.62,0.48799722]
[1737047151978,1.04692157,713.14,712.26,0.28079633]
[1737047152175,1.04692157,713.23,712.27,0.48750187]
[1737047152476,1.04692157,713.23,712.28,0.48750187]
[1737047152676,1.04692157,713.23,712.26,0.28079633]
[1737047152677,1.04692157,713.23,712.29,0.48750187]
[1737047152898,0.28041838,713.22,712.3,0.48750187]
[1737047153077,0.28041838,713.22,711.94,1.04450353]
[1737047153278,0.28041838,713.22,711.95,0.4875884]
[1737047153471,1.04692157,713.17,711.96,0.4875884]
[1737047153672,1.04692157,713.17,711.97,0.4875884]
[1737047153977,1.04692157,713.17,711.98,0.4875884]
[1737047154177,1.04692157,713.17,711.99,0.4875884]
[1737047154473,1.04692157,713.17,712.0,0.4875884]
[1737047154678,1.04692157,713.17,712.01,0.4875884]
[1737047154980,0.28041838,713.22,712.02,0.4875884]
[1737047154981,1.04692157,713.04,712.02,0.4875884]
[1737047155178,1.04692157,713.04,712.03,0.4875884]
[1737047155373,1.04692157,713.04,712.04,0.4875884]
[1737047155574,1.04692157,713.04,712.05,0.4875884]
[1737047155773,1.04692157,713.04,711.35,1.04450353]
[1737047155774,1.04692157,713.04,712.06,0.4875884]
[1737047155979,0.28041838,713.22,712.07,0.4875884]
[1737047155980,1.04692157,713.19,712.07,0.4875884]
[1737047156181,1.04692157,713.19,712.08,0.4875884]
[1737047156480,0.28041838,713.22,712.09,0.4875884]
[1737047156682,0.28041838,713.22,712.1,0.4875884]
[1737047156880,0.28041838,713.22,708.75,6.55053803]
[1737047156881,0.28041838,713.22,712.11,0.4875884]
[1737047157079,0.28041838,713.22,712.12,0.4875884]
[1737047157275,0.28041838,713.22,712.13,0.4875884]
[1737047157476,0.28041838,713.22,712.14,0.4875884]
[1737047157676,0.28041838,713.22,712.15,0.4875884]
[1737047157879,0.28041838,713.22,712.16,0.4875884]
[1737047157880,1.04624239,713.16,712.16,0.4875884]
[1737047158076,1.04624239,713.16,712.17,0.4875884]
[1737047158282,1.04624239,713.16,712.18,0.4875884]
[1737047158473,1.04624239,713.16,712.19,0.4875884]
[1737047158677,1.04624239,713.16,712.2,0.4875884]
[1737047158978,1.04624239,713.16,711.07,1.25077236]
[1737047158979,1.04624239,713.18,712.21,0.4875884]
[1737047159174,1.04624239,713.18,712.22,0.4875884]
[1737047159378,1.04624239,713.18,712.23,0.4875884]
[1737047159579,1.04624239,713.18,712.24,0.4875884]
[1737047159783,1.04624239,713.18,712.25,0.4875884]
[1737047160083,1.32666077,713.22,712.26,0.4875884]
[1737047160281,1.32666077,713.22,712.27,0.4875884]
[1737047160482,1.32666077,713.22,712.28,0.4875884]
[1737047160682,1.32666077,713.22,712.29,0.4875884]
[1737047160877,1.32666077,713.22,711.05,1.25077236]
[1737047160878,0.28041838,713.22,712.3,0.4875884]
[1737047161080,0.28041838,713.22,711.52,1.0423103]
[1737047161081,0.28041838,713.22,712.31,0.4875884]
[1737047161282,0.28041838,713.22,712.32,0.4875884]
[1737047161483,0.28041838,713.22,712.33,0.4875884]
[1737047161781,0.28041838,713.22,712.34,0.4875884]
[1737047161978,0.28041838,713.22,712.35,0.4875884]
[1737047162177,0.28041838,713.22,712.36,0.4875884]
[1737047162381,0.28041838,713.22,711.54,1.0423103]
[1737047162577,0.28041838,713.22,711.56,0.28107257]
[1737047162778,0.28041838,713.22,711.57,0.74377662]
[1737047162981,0.28041838,713.22,711.58,0.74377662]
[1737047163182,0.28041838,713.22,711.59,0.74377662]
[1737047163380,0.28041838,713.22,711.6,0.74377662]
[1737047163584,0.28041838,713.22,711.61,0.74377662]
[1737047163784,1.04624239,713.17,711.62,0.74377662]
[1737047164083,1.04624239,713.17,711.63,0.74377662]
[1737047164283,1.04624239,713.17,711.64,0.76685988]
[1737047164577,1.04624239,713.17,711.65,0.74379808]
[1737047164783,1.04624239,713.17,711.66,0.74379808]
[1737047164984,1.04624239,713.17,711.67,0.76684803]
[1737047165184,1.04624239,713.17,711.68,0.48581891]
[1737047165384,0.28041838,713.22,711.69,0.74379632]
[1737047165385,1.04624239,713.09,711.69,0.74379632]
[1737047165683,1.04624239,713.09,711.67,0.28102912]
[1737047165684,1.04624239,713.09,711.7,0.74379632]
[1737047165885,1.04624239,713.09,711.71,1.02480965]
[1737047166084,1.04624239,713.09,711.72,0.74379632]
[1737047166384,1.04624239,713.08,711.73,1.02480175]
[1737047166586,1.04624239,713.08,711.74,0.74379632]
[1737047166782,1.04624239,713.08,711.73,0.28100543]
[1737047166783,1.04624239,713.08,711.75,0.74379632]
[1737047166983,1.04624239,713.08,711.76,0.74379632]
[1737047167185,1.04624239,713.13,711.77,0.74378552]
[1737047167385,1.04624239,713.13,711.78,0.74378552]
[1737047167684,1.04624239,713.13,711.79,0.74378552]
[1737047167880,1.04624239,713.11,711.8,0.74378552]
[1737047168079,1.04624239,713.11,711.81,0.74378552]
[1737047168279,1.04624239,713.11,711.82,0.74378552]
[1737047168486,1.04624239,713.11,711.83,0.74378552]
[1737047168685,1.04624239,713.11,711.84,0.74378552]
[1737047168879,1.04624239,713.11,711.85,0.74378552]
[1737047169085,1.04624239,713.12,711.86,0.74378552]
[1737047169279,1.04624239,713.12,711.73,0.28100543]
[1737047169280,1.04624239,713.12,711.87,0.74378552]
[1737047169483,1.04624239,713.12,711.88,0.74378552]
[1737047169789,1.04624239,713.12,711.89,0.74377664]
[1737047169983,1.04624239,713.12,711.9,0.74378609]
[1737047170182,0.28041838,713.22,711.91,0.74378609]
[1737047170183,1.04624239,713.11,711.91,0.74378609]
[1737047170484,1.04624239,713.11,711.92,0.74378609]
[1737047170785,1.04624239,713.11,711.93,0.74378609]
[1737047170986,1.04624239,713.11,711.94,0.74378609]
[1737047171178,1.04624239,713.11,711.95,0.74378609]
[1737047171382,1.04624239,713.11,711.96,0.74378609]
[1737047171583,1.04624239,713.11,711.97,0.74378609]
[1737047171782,0.28041838,713.22,711.98,0.74378485]
[1737047171783,1.04624239,713.09,711.98,0.74378485]
[1737047172085,1.04624239,713.09,711.99,0.74378415]
[1737047172384,1.04624239,713.09,712.0,0.74378415]
[1737047172584,1.04624239,713.09,712.01,0.48581891]
[1737047172787,1.04624239,713.09,712.02,0.48581891]
[1737047172985,1.04624239,713.09,712.03,0.48581891]
[1737047173286,1.04624239,713.09,712.04,0.48581891]
[1737047173478,1.04624239,713.09,712.05,0.48581891]
[1737047173678,1.04624239,713.09,712.06,0.48581891]
[1737047173986,0.28041838,713.22,712.07,0.48581891]
[1737047173987,1.32666077,713.22,712.07,0.48581891]
[1737047174185,1.32666077,713.22,712.08,0.48581891]
[1737047174386,1.32666077,713.22,712.09,0.48581891]
[1737047174578,1.32666077,713.22,712.1,0.48581891]
[1737047174783,1.04624239,713.19,712.11,0.48581891]
[1737047174986,1.04624239,713.19,712.12,0.48581891]
[1737047175180,1.04624239,713.19,712.13,0.48581891]
[1737047175386,1.04624239,713.19,712.14,0.48581891]
[1737047175586,1.04624239,713.19,712.15,0.48581891]
[1737047175786,1.04624239,713.19,712.16,0.48581891]
[1737047175981,1.04624239,713.17,712.17,0.48581891]
[1737047176187,1.04624239,713.17,712.18,0.48581891]
[1737047176484,1.04624239,713.17,712.19,0.48581891]
[1737047176684,1.04624239,713.17,712.2,0.48581891]
[1737047176885,1.04624239,713.17,712.21,0.48581891]
[1737047177088,0.28041838,713.22,712.22,0.48581891]
[1737047177287,0.28041838,713.22,712.23,0.48581891]
[1737047177482,0.28041838,713.22,712.24,0.48581891]
[1737047177682,0.28041838,713.22,711.73,0.28100543]
[1737047177683,0.28041838,713.22,712.25,0.48581891]
[1737047177884,0.28041838,713.22,712.26,0.48581891]
[1737047178081,0.28041838,713.22,712.27,0.48581891]
[1737047178285,0.28041838,713.22,712.28,0.48581891]
[1737047178484,0.28041838,713.22,712.29,0.48581891]
[1737047178682,0.28041838,713.22,712.3,0.48581891]
[1737047178884,0.28041838,713.22,712.31,0.48581891]
[1737047179086,0.28041838,713.22,712.32,0.48581891]
[1737047179290,0.28041838,713.22,711.73,0.28100543]
[1737047179291,1.04624239,713.2,712.33,0.48581891]
[1737047179590,1.04624239,713.2,712.34,0.48581891]
[1737047179793,1.04624239,713.2,712.35,0.48581891]
[1737047179986,1.04624239,713.2,712.36,0.48567132]
[1737047180191,1.04624239,713.2,711.73,0.28100543]
[1737047180390,1.04624239,713.2,711.74,0.4856841]
[1737047180585,0.28041838,713.22,711.75,0.76668164]
[1737047180789,0.28041838,713.22,711.76,0.76667769]
[1737047180993,0.28041838,713.22,711.77,0.76667374]
[1737047181191,0.28041838,713.22,711.78,0.4856841]
[1737047181390,0.28041838,713.22,711.79,0.4856841]
[1737047181591,0.28041838,713.22,711.8,0.4856841]
[1737047181892,0.28041838,713.22,711.81,0.4856841]
[1737047182095,0.28041838,713.22,711.82,0.4856841]
[1737047182293,0.28041838,713.22,711.83,0.4856841]
[1737047182594,0.28041838,713.22,711.84,0.4856841]
[1737047182794,1.04624239,713.08,711.85,0.4856841]
[1737047182990,1.04624239,713.08,711.86,0.4856841]
[1737047183191,1.04624239,713.08,711.87,0.4856841]
[1737047183494,1.04624239,713.08,711.88,0.4856841]
[1737047183699,1.04624239,713.08,711.89,0.4856841]
[1737047183995,1.04624239,713.08,711.9,0.4856841]
[1737047184194,1.04624239,712.99,711.91,0.4856841]
[1737047184391,1.04624239,712.99,711.92,0.4856841]
[1737047184596,1.04624239,712.99,711.93,0.4856841]
[1737047184894,1.04624239,712.99,711.94,0.4856841]
[1737047185089,1.04624239,712.99,711.95,0.4856841]
[1737047185294,1.04624239,712.99,711.96,0.4856841]
[1737047185496,1.04624239,712.98,711.97,0.4856841]
[1737047185697,1.04624239,712.98,711.98,0.4856841]
[1737047185897,1.04624239,712.98,711.99,0.4856841]
[1737047186094,1.04624239,712.98,712.0,0.4856841]
[1737047186295,1.04624239,712.98,712.01,0.4856841]
[1737047186496,1.04624239,712.91,712.02,0.4856841]
[1737047186795,1.04624239,712.91,712.03,0.4856841]
[1737047186995,1.04624239,712.91,712.04,0.4856841]
[1737047187296,1.04624239,712.91,712.05,0.4856841]
[1737047187595,0.28041838,713.22,711.77,0.28098964]
[1737047187596,1.04624239,712.73,712.06,0.4856841]
[1737047187796,1.04624239,712.73,712.07,0.4856841]
[1737047187998,1.04624239,712.73,712.08,0.4856841]
[1737047188299,1.04624239,712.73,712.09,0.4856841]
[1737047188496,1.04624239,712.73,711.77,0.28098964]
[1737047188698,1.04624239,712.79,711.78,0.48653866]
[1737047188893,1.04624239,712.79,711.79,0.48653866]
[1737047189098,1.04624239,712.79,711.8,0.48653866]
[1737047189294,1.04624239,712.79,711.81,0.48653866]
[1737047189494,1.04624239,712.79,711.82,0.48653866]
[1737047189699,1.04624239,712.79,711.83,0.48653866]
[1737047189995,1.04624239,712.79,711.84,0.48653866]
[1737047190199,1.04624239,712.79,711.85,0.48653866]
[1737047190399,1.04624239,712.79,711.86,0.48653866]
[1737047190594,1.04624239,712.85,711.87,0.48653866]
[1737047190802,1.04624239,712.85,711.88,0.48653866]
[1737047191000,1.04624239,712.85,711.89,0.48653866]
[1737047191198,1.04624239,712.85,711.9,0.48653866]
[1737047191399,1.04624239,712.85,711.91,0.48653866]
[1737047191600,1.04624239,712.89,711.92,0.48653866]
[1737047191801,1.04624239,712.89,711.93,0.48653866]
[1737047192099,1.04624239,712.89,711.94,0.48653866]
[1737047192294,1.04624239,712.89,711.95,0.48653866]
[1737047192497,1.04624239,712.89,711.96,0.48653866]
[1737047192697,1.04624239,712.89,711.77,0.28098964]
[1737047192698,1.04624239,712.92,711.97,0.48653866]
[1737047192998,1.04624239,712.92,711.98,0.48653866]
[1737047193202,1.04624239,712.92,711.99,0.48653866]
[1737047193502,1.04624239,712.92,712.0,0.48653866]
[1737047193705,1.04624239,712.92,712.01,0.48653866]
[1737047193902,1.04624239,712.92,712.02,0.48653866]
[1737047194198,1.04624239,712.92,712.03,0.48653866]
[1737047194407,1.04624239,712.92,712.04,0.48653866]
[1737047194702,1.04624239,712.92,712.05,0.48653866]
[1737047194904,1.04624239,712.92,712.06,0.48653866]
[1737047195104,1.04624239,712.92,711.77,0.28098964]
[1737047195304,1.04624239,712.92,711.78,0.48672034]
[1737047195506,1.04624239,712.84,711.79,0.48672034]
[1737047195705,1.04624239,712.84,711.8,0.48672034]
[1737047195907,1.04624239,712.84,711.81,0.48672034]
[1737047196103,1.04624239,712.84,711.82,0.48672034]
[1737047196308,1.04624239,712.84,711.83,0.48672034]
[1737047196504,1.04624239,712.84,711.84,0.48672034]
[1737047196709,1.04624239,712.77,711.85,0.48672034]
[1737047196903,1.04624239,712.77,711.77,0.28098964]
[1737047196904,1.04624239,712.77,711.86,0.48672034]
[1737047197103,1.04624239,712.77,711.87,0.48672034]
[1737047197306,1.04624239,712.77,711.88,0.48672034]
[1737047197508,1.04624239,712.77,711.89,0.48672034]
[1737047197708,1.04624239,712.79,711.9,0.48672034]
[1737047197908,1.04624239,712.79,711.91,0.48672034]
[1737047198210,1.04624239,712.79,711.92,0.48672034]
[1737047198406,1.04624239,712.79,711.93,0.48701696]
[1737047198607,1.04624239,712.84,711.94,0.48701696]
[1737047198815,1.04624239,712.84,711.95,0.48701696]
[1737047199012,1.04624239,712.84,711.96,0.48701696]
[1737047199207,1.04624239,712.84,711.97,0.48701696]
[1737047199409,1.04624239,712.83,711.98,0.48701696]
[1737047199610,1.04624239,712.83,711.99,0.48701696]
[1737047199813,1.04624239,712.83,712.0,0.48701696]
[1737047200010,1.04624239,712.83,712.01,0.48701696]
[1737047200214,1.04624239,712.83,712.02,0.48701696]
[1737047200417,1.04624239,712.84,712.03,0.48701696]
[1737047200615,1.04624239,712.84,712.04,0.48701696]
[1737047200815,1.04624239,712.84,712.05,0.48701696]
[1737047201115,1.04624239,712.84,711.77,0.28098964]
[1737047201416,1.04624239,712.87,711.78,0.48716653]
[1737047201712,1.04624239,712.87,711.79,0.48716653]
[1737047201914,1.04624239,712.87,711.8,0.48716653]
[1737047202116,1.04624239,712.88,711.81,0.48716653]
[1737047202414,1.04624239,712.88,711.82,0.48716653]
[1737047202615,1.04624239,712.88,711.83,0.48716653]
[1737047202816,1.04624239,712.88,711.84,0.48716653]
[1737047203009,1.04624239,712.88,711.77,0.28098964]
[1737047203010,1.04624239,712.88,711.85,0.48716653]
[1737047203214,1.04624239,712.88,711.86,0.48716653]
[1737047203412,1.04624239,712.98,711.87,0.48716653]
[1737047203612,0.28051671,712.97,711.88,0.48716653]
[1737047203817,0.28051671,712.97,711.89,0.48716653]
[1737047204117,0.28051671,712.97,711.9,0.48716653]
[1737047204318,0.28051671,712.97,711.91,0.48716653]
[1737047204518,0.28051671,712.97,711.92,0.48716653]
[1737047204712,0.28051671,712.97,711.93,0.48716653]
[1737047204919,0.28051671,712.97,711.94,0.48716653]
[1737047205118,0.28051671,712.97,711.95,0.48716653]
[1737047205319,0.28051671,712.97,711.96,0.48716653]
[1737047205615,0.28051671,712.97,711.97,0.48716653]
[1737047205813,0.28051671,712.97,711.98,0.48716653]
[1737047206015,0.28051671,712.97,711.99,0.48716653]
[1737047206216,0.28051671,712.97,712.0,0.48716653]
[1737047206512,0.28051671,712.97,712.01,0.48716653]
[1737047206718,0.28051671,712.97,712.02,0.48716653]
[1737047206919,0.28051671,712.97,712.03,0.48716653]
[1737047207119,0.28051671,712.97,712.04,0.48716653]
[1737047207418,0.28051671,712.97,712.05,0.48716653]
[1737047207613,0.28051671,712.97,712.06,0.48716653]
[1737047207816,0.28051671,712.97,712.07,0.48716653]